bitfinex/quotes_BTCUSD_20250902
["timestamp","ask_amount","ask_price","bid_price","bid_amount"]
[1756790586101,0.35301027,110330.0,110320.0,0.18641079]
[1756790586364,0.33343969,110330.0,110320.0,0.18641079]
[1756790587311,0.33343969,110330.0,110320.0,0.00512]
[1756790587511,0.33343969,110330.0,110320.0,0.18641079]
[1756790587723,0.33343969,110330.0,110320.0,0.00512]
[1756790587947,0.18129079,110320.0,110310.0,0.00347]
[1756790588161,0.27320678,110320.0,110310.0,0.00347]
[1756790588363,0.65936148,110320.0,110310.0,0.0004]
[1756790588812,0.65936148,110320.0,110310.0,0.00552]
[1756790589032,0.78519692,110320.0,110310.0,0.00552]
[1756790589262,0.81249192,110320.0,110310.0,0.00552]
[1756790589502,0.81249192,110320.0,110310.0,0.0004]
[1756790590745,0.81249192,110320.0,110310.0,0.0014]
[1756790590946,0.81249192,110320.0,110310.0,0.0024]
[1756790591154,0.81249196,110320.0,110310.0,0.0004]
[1756790591562,0.88221196,110320.0,110310.0,0.0004]
[1756790592164,0.92356975,110320.0,110310.0,0.0004]
[1756790592386,0.95017431,110320.0,110310.0,0.0004]
[1756790593841,0.95117431,110320.0,110310.0,0.0004]
[1756790594816,0.95317431,110320.0,110310.0,0.0004]
[1756790595055,0.95117431,110320.0,110310.0,0.0004]
[1756790595516,0.95317431,110320.0,110310.0,0.0004]
[1756790596878,0.95408291,110320.0,110310.0,0.0004]
[1756790597580,5.97852063,110320.0,110310.0,0.0004]
[1756790597815,5.97848063,110320.0,110310.0,0.0004]
[1756790598037,0.95404291,110320.0,110310.0,0.00552]
[1756790598789,0.80160291,110320.0,110310.0,0.00552]
[1756790599030,0.77499835,110320.0,110310.0,0.00552]
[1756790599270,0.92751835,110320.0,110310.0,0.00552]
[1756790599575,0.77499835,110320.0,110310.0,0.00552]
[1756790599689,0.92751835,110320.0,110310.0,0.00552]
[1756790600180,0.95095607,110320.0,110310.0,0.0004]
[1756790600423,0.92651835,110320.0,110310.0,0.00347]
[1756790600910,0.92451835,110320.0,110310.0,0.00347]
[1756790601864,5.92451835,110320.0,110310.0,0.00347]
[1756790602081,5.92451835,110320.0,110310.0,0.0004]
[1756790602506,5.95112291,110320.0,110310.0,0.0004]
[1756790603611,5.95212291,110320.0,110310.0,0.0004]
[1756790604026,5.95112291,110320.0,110310.0,0.0004]
[1756790604326,5.95212291,110320.0,110310.0,0.0004]
[1756790604538,5.95412291,110320.0,110310.0,0.0004]
[1756790606165,5.97856063,110320.0,110310.0,0.0004]
[1756790606392,5.99553153,110320.0,110310.0,0.0004]
[1756790610871,5.97856063,110320.0,110310.0,0.0004]
[1756790611073,5.99552917,110320.0,110310.0,0.0004]
[1756790614434,6.00189123,110320.0,110310.0,0.0004]
[1756790614834,6.00169123,110320.0,110310.0,0.0004]
[1756790615642,5.84937123,110320.0,110310.0,0.00351]
[1756790615879,6.00165123,110320.0,110310.0,0.00547]
[1756790616460,5.84937123,110320.0,110310.0,0.00547]
[1756790616785,5.96868461,110320.0,110310.0,0.00547]
[1756790617215,5.97505063,110320.0,110310.0,0.00547]
[1756790617367,6.00773911,110320.0,110310.0,0.00547]
[1756790618376,5.85537911,110320.0,110310.0,0.00547]
[1756790618578,6.00773911,110320.0,110310.0,0.00547]
[1756790620588,6.00765911,110320.0,110310.0,0.00547]
[1756790620792,5.8227738,110320.0,110310.0,0.00547]
[1756790621010,0.9750538,110320.0,110310.0,0.00547]
[1756790621221,0.73085781,110320.0,110310.0,0.00547]
[1756790621425,0.7931584,110320.0,110310.0,0.00547]
[1756790621816,0.7911584,110320.0,110310.0,0.00547]
[1756790622637,0.93414472,110320.0,110310.0,0.00547]
[1756790623102,0.90754016,110320.0,110310.0,0.00547]
[1756790623353,0.88207439,110320.0,110310.0,0.00547]
[1756790623773,0.77019375,110320.0,110310.0,0.00547]
[1756790623984,0.7901184,110320.0,110310.0,0.00547]
[1756790628749,0.83143537,110320.0,110310.0,0.00547]
[1756790629658,0.67915537,110320.0,110310.0,0.00547]
[1756790629862,0.83143537,110320.0,110310.0,0.00547]
[1756790631381,0.67915537,110320.0,110310.0,0.00547]
[1756790631591,0.83139537,110320.0,110310.0,0.00547]
[1756790632157,0.67915537,110320.0,110310.0,0.00547]
[1756790632376,0.49135537,110320.0,110310.0,0.00547]
[1756790634151,0.4500384,110320.0,110310.0,0.00547]
[1756790635158,0.2978384,110320.0,110310.0,0.00547]
[1756790635355,0.2978384,110320.0,110310.0,0.18677722]
[1756790635356,0.4227834,110320.0,110310.0,0.18677722]
[1756790635560,0.4227834,110320.0,110310.0,0.00547]
[1756790635764,0.4227834,110320.0,110310.0,0.18677722]
[1756790635979,0.40321079,110320.0,110310.0,0.18677722]
[1756790636183,0.40321079,110320.0,110310.0,0.00547]
[1756790637183,0.25101079,110320.0,110310.0,0.00547]
[1756790637389,0.40321079,110320.0,110310.0,0.00547]
[1756790641989,0.40321079,110320.0,110310.0,0.18677722]
[1756790642668,0.40321079,110320.0,110310.0,0.00547]
[1756790642799,0.40321079,110320.0,110310.0,0.18677722]
[1756790643370,0.33349079,110320.0,110310.0,0.18677722]
[1756790643979,0.33349079,110320.0,110310.0,0.00547]
[1756790645030,0.33349079,110320.0,110310.0,0.18677722]
[1756790645934,0.33349079,110320.0,110310.0,0.00547]
[1756790646420,0.35304949,110320.0,110310.0,0.00547]
[1756790647260,0.35304949,110320.0,110310.0,0.00351]
[1756790647614,0.35296949,110320.0,110310.0,0.00351]
[1756790648497,0.35296949,110320.0,110310.0,0.00555]
[1756790648708,0.35296949,110320.0,110310.0,0.00351]
[1756790650283,0.35296949,110320.0,110310.0,0.00555]
[1756790653985,0.20084949,110320.0,110310.0,0.00555]
[1756790654129,0.35296949,110320.0,110310.0,0.00555]
[1756790654532,0.35296949,110320.0,110310.0,0.18685722]
[1756790654533,0.20084949,110320.0,110310.0,0.18685722]
[1756790654745,0.0195587,110320.0,110310.0,0.18685722]
[1756790654932,0.33348078,110330.0,110320.0,0.18129079]
[1756790655182,0.35305641,110330.0,110320.0,0.18649079]
[1756790655652,8.534e-05,110330.0,110320.0,0.18649079]
[1756790655864,0.15220534,110330.0,110320.0,0.18649079]
[1756790656073,8.534e-05,110330.0,110320.0,0.18649079]
[1756790656289,0.85842937,110340.0,110320.0,0.18649079]
[1756790656507,0.87799749,110340.0,110320.0,0.18345901]
[1756790656718,1.21799749,110340.0,110330.0,0.00316]
[1756790656933,1.21799749,110340.0,110330.0,0.18647435]
[1756790657361,1.21999749,110340.0,110330.0,0.18647435]
[1756790657654,1.21799749,110340.0,110330.0,0.18647435]
[1756790658068,1.26169876,110340.0,110330.0,0.18647435]
[1756790658270,1.26269876,110340.0,110330.0,0.18647435]
[1756790658488,1.26269876,110340.0,110330.0,0.0052]
[1756790658705,1.26169876,110340.0,110330.0,0.0052]
[1756790659116,1.26269876,110340.0,110330.0,0.0052]
[1756790659559,1.22099749,110340.0,110330.0,0.0052]
[1756790659962,1.15127749,110340.0,110330.0,0.18647435]
[1756790660169,0.97958937,110340.0,110330.0,0.18647435]
[1756790660376,1.13170937,110340.0,110330.0,0.0052]
[1756790661218,1.13170937,110340.0,110330.0,0.18647435]
[1756790662073,1.13170937,110340.0,110330.0,0.0052]
[1756790662453,1.13170937,110340.0,110330.0,0.18647435]
[1756790663428,1.13170937,110340.0,110330.0,0.0052]
[1756790664763,1.13170937,110340.0,110330.0,0.18647435]
[1756790665766,1.13166937,110340.0,110330.0,0.18647435]
[1756790666014,0.97958937,110340.0,110330.0,0.18647435]
[1756790666224,1.15121234,110340.0,110330.0,0.18647435]
[1756790666424,1.15121234,110340.0,110330.0,0.0052]
[1756790667055,1.15121234,110340.0,110330.0,0.00316]
[1756790671383,0.99913234,110340.0,110330.0,0.00316]
[1756790671593,1.15120133,110340.0,110330.0,0.00316]
[1756790673616,1.15120133,110340.0,110330.0,0.0052]
[1756790674225,1.15120133,110340.0,110330.0,0.00316]
[1756790676508,1.15120133,110340.0,110330.0,0.00522]
[1756790676710,1.15120133,110340.0,110330.0,0.18649435]
[1756790676916,0.54186296,110340.0,110330.0,0.18649435]
[1756790677116,0.70358893,110340.0,110330.0,0.18649435]
[1756790677318,0.182331,110340.0,110330.0,0.18649435]
[1756790677928,0.15408,110340.0,110330.0,0.18649435]
[1756790678144,0.002,110340.0,110330.0,0.18649435]
[1756790678362,0.002,110340.0,110330.0,0.33857435]
[1756790678784,0.72563292,110350.0,110340.0,0.18125793]
[1756790678985,0.74516941,110350.0,110340.0,0.18635793]
[1756790679424,0.56392791,110350.0,110340.0,0.18635793]
[1756790679637,0.02506342,110350.0,110340.0,0.18635793]
[1756790680054,0.3605494,110360.0,110350.0,0.1812415]
[1756790680208,0.3605494,110360.0,110350.0,0.1863415]
[1756790680209,0.38008598,110360.0,110350.0,0.1863415]
[1756790680416,0.39747659,110360.0,110350.0,0.1863415]
[1756790680622,0.06417119,110360.0,110350.0,0.1863415]
[1756790680836,0.21625119,110360.0,110350.0,0.1863415]
[1756790681587,0.21725119,110360.0,110350.0,0.1863415]
[1756790681798,0.39847627,110360.0,110350.0,0.1863415]
[1756790682214,0.40047627,110360.0,110350.0,0.1863415]
[1756790682627,0.39847627,110360.0,110350.0,0.1863415]
[1756790682840,0.39747627,110360.0,110350.0,0.1863415]
[1756790683594,0.39747627,110360.0,110350.0,0.0051]
[1756790684287,0.39747627,110360.0,110350.0,0.1863415]
[1756790686305,0.37793969,110360.0,110350.0,0.1863415]
[1756790686510,0.19671461,110360.0,110350.0,0.1863415]
[1756790687487,0.04463461,110360.0,110350.0,0.1863415]
[1756790688091,0.22585969,110360.0,110350.0,0.1863415]
[1756790690136,0.22585969,110360.0,110350.0,0.0051]
[1756790690542,0.22585969,110360.0,110350.0,0.1863415]
[1756790692500,0.1812415,110350.0,110340.0,0.33839793]
[1756790692751,0.37789969,110360.0,110340.0,0.33939793]
[1756790692974,0.37789969,110360.0,110350.0,0.1842815]
[1756790693432,0.37789969,110360.0,110350.0,0.00304]
[1756790693849,0.1812415,110350.0,110340.0,0.33733793]
[1756790694057,0.37789969,110360.0,110340.0,0.33939793]
[1756790694592,0.20679423,110360.0,110350.0,0.00304]
[1756790694772,0.23403723,110360.0,110350.0,0.00304]
[1756790695078,0.24984944,110360.0,110350.0,0.00304]
[1756790695607,0.24984944,110360.0,110350.0,0.1863415]
[1756790698925,0.24984944,110360.0,110350.0,0.0051]
[1756790699222,0.24984944,110360.0,110350.0,0.00304]
[1756790699740,0.24984944,110360.0,110350.0,0.1842815]
[1756790700257,0.24984944,110360.0,110350.0,0.00304]
[1756790700662,0.24984944,110360.0,110350.0,0.1842815]
[1756790700865,0.24984944,110360.0,110350.0,0.00304]
[1756790701849,0.24984944,110360.0,110350.0,0.0051]
[1756790702133,0.24984944,110360.0,110350.0,0.1863415]
[1756790702557,0.04305521,110360.0,110350.0,0.1863415]
[1756790702762,0.22428029,110360.0,110350.0,0.1863415]
[1756790702997,0.04305521,110360.0,110350.0,0.1863415]
[1756790703832,0.01581221,110360.0,110350.0,0.1863415]
[1756790704259,0.17928,110370.0,110360.0,0.18122508]
[1756790704470,0.17928,110370.0,110360.0,0.33836508]
[1756790704471,0.02724,110370.0,110360.0,0.33836508]
[1756790704650,0.20844866,110370.0,110360.0,0.33836508]
[1756790705340,0.22423899,110370.0,110360.0,0.33836508]
[1756790705540,0.22423899,110370.0,110360.0,0.3384933]
[1756790705780,0.04303033,110370.0,110360.0,0.3384933]
[1756790705978,0.16779033,110370.0,110360.0,0.1864533]
[1756790706194,0.18733826,110370.0,110360.0,0.1864533]
[1756790706593,0.37790248,110380.0,110360.0,0.1884533]
[1756790706594,0.3417569,110380.0,110360.0,0.1884533]
[1756790706816,0.51330325,110380.0,110360.0,0.1854133]
[1756790707036,0.85330325,110380.0,110370.0,0.00308]
[1756790707259,0.89393685,110380.0,110370.0,0.00308]
[1756790707944,0.68780554,110380.0,110370.0,0.18428866]
[1756790708163,0.64717194,110380.0,110370.0,0.18643866]
[1756790708376,0.79917194,110380.0,110370.0,0.18643866]
[1756790709005,0.64717194,110380.0,110370.0,0.18643866]
[1756790709222,0.79917194,110380.0,110370.0,0.18643866]
[1756790709849,0.79011233,110380.0,110370.0,0.18643866]
[1756790710805,0.63811233,110380.0,110370.0,0.18643866]
[1756790711006,0.73556628,110380.0,110370.0,0.18643866]
[1756790712338,0.73556628,110380.0,110370.0,0.18120866]
[1756790712575,0.18120866,110370.0,110360.0,0.00012822]
[1756790712746,0.65926027,110370.0,110360.0,0.00012822]
[1756790713109,0.66016836,110370.0,110360.0,0.00012822]
[1756790713318,0.68741136,110370.0,110360.0,0.00012822]
[1756790713793,0.68741136,110370.0,110360.0,0.00112822]
[1756790714305,0.68741136,110370.0,110360.0,0.00012822]
[1756790714895,0.68741136,110370.0,110360.0,0.00112822]
[1756790715049,0.68741136,110370.0,110360.0,0.00012822]
[1756790727234,0.68741136,110370.0,110360.0,0.00320822]
[1756790731687,0.68741136,110370.0,110360.0,0.00012822]
[1756790732089,0.83941136,110370.0,110360.0,0.00320822]
[1756790735806,0.83850327,110370.0,110360.0,0.00320822]
[1756790738884,0.68650327,110370.0,110360.0,0.00535822]
[1756790739093,0.81185871,110370.0,110360.0,0.00535822]
[1756790739812,0.81185871,110370.0,110360.0,0.1865833]
[1756790740251,0.19873406,110370.0,110360.0,0.1865833]
[1756790741540,0.37994272,110370.0,110360.0,0.1865833]
[1756790742288,0.37994272,110370.0,110360.0,0.00535822]
[1756790743304,0.37994272,110370.0,110360.0,0.1865833]
[1756790744549,0.37994272,110370.0,110360.0,0.00535822]
[1756790744774,0.37994272,110370.0,110360.0,0.1865833]
[1756790746899,0.19873406,110370.0,110360.0,0.1865833]
[1756790748333,0.37994272,110370.0,110360.0,0.1865833]
[1756790748742,0.19873406,110370.0,110360.0,0.1865833]
[1756790748956,0.37994272,110370.0,110360.0,0.1865833]
[1756790749116,0.04677406,110370.0,110360.0,0.1865833]
[1756790749316,0.027243,110370.0,110360.0,0.3385433]
[1756790749529,0.01558869,110380.0,110370.0,0.18120866]
[1756790749775,0.34226563,110390.0,110380.0,0.18119224]
[1756790749776,0.36037191,110390.0,110380.0,0.18119224]
[1756790749974,0.37991485,110390.0,110380.0,0.18655224]
[1756790750590,0.37991485,110390.0,110380.0,0.18555224]
[1756790750796,0.04677894,110390.0,110380.0,0.18555224]
[1756790751079,0.19873894,110390.0,110380.0,0.18555224]
[1756790751319,0.21444453,110390.0,110380.0,0.18555224]
[1756790751534,0.39562036,110390.0,110380.0,0.18555224]
[1756790751717,0.21444453,110390.0,110380.0,0.18555224]
[1756790751919,0.39562036,110390.0,110380.0,0.18555224]
[1756790752386,0.04294159,110390.0,110380.0,0.18555224]
[1756790752617,0.19490159,110390.0,110380.0,0.18555224]
[1756790753741,0.19486159,110390.0,110380.0,0.18781714]
[1756790754183,0.01570559,110390.0,110380.0,0.18781714]
[1756790754606,0.70031396,110400.0,110390.0,0.18117583]
[1756790754822,0.70031396,110400.0,110390.0,0.18332583]
[1756790755008,0.70031396,110400.0,110390.0,0.18653583]
[1756790755907,0.70231396,110400.0,110390.0,0.18653583]
[1756790756348,0.73016157,110400.0,110390.0,0.18653583]
[1756790756617,0.73116157,110400.0,110390.0,0.18653583]
[1756790757807,0.05808161,110400.0,110390.0,0.27845182]
[1756790758022,0.03084761,110400.0,110390.0,0.27845182]
[1756790758452,0.03084761,110400.0,110390.0,0.43037182]
[1756790758637,0.02884761,110400.0,110390.0,0.43037182]
[1756790758967,0.02884761,110400.0,110390.0,0.43437182]
[1756790759219,0.02884761,110400.0,110390.0,0.43037182]
[1756790759419,0.02784761,110400.0,110390.0,0.43037182]
[1756790759638,0.02884761,110400.0,110390.0,0.43537182]
[1756790759850,0.001,110400.0,110390.0,0.43337182]
[1756790760067,0.36933297,110420.0,110400.0,0.18114331]
[1756790760282,0.70933297,110420.0,110410.0,0.18114301]
[1756790760492,0.70933297,110420.0,110400.0,0.18114331]
[1756790760705,0.70933297,110420.0,110410.0,0.00321]
[1756790760911,0.70933297,110420.0,110410.0,0.18435301]
[1756790761119,0.70933297,110420.0,110410.0,0.00321]
[1756790761328,0.18114301,110410.0,110400.0,0.33627331]
[1756790761537,0.18114301,110410.0,110400.0,0.00321]
[1756790761784,0.18115942,110400.0,110390.0,0.15913]
[1756790762004,0.18115942,110400.0,110390.0,0.00321]
[1756790762226,0.18115942,110400.0,110380.0,0.33628224]
[1756790762227,0.18117583,110390.0,110380.0,0.33628224]
[1756790762441,0.18117583,110390.0,110380.0,0.33843224]
[1756790763119,0.18117583,110390.0,110380.0,0.18655224]
[1756790763336,0.18117583,110390.0,110370.0,0.25994909]
[1756790763567,0.18117583,110390.0,110370.0,0.41503909]
[1756790763784,0.18117583,110390.0,110380.0,0.18440224]
[1756790764213,0.18117583,110390.0,110380.0,0.19355224]
[1756790765111,0.39774727,110400.0,110380.0,0.19355224]
[1756790765331,0.48966326,110400.0,110380.0,0.19155224]
[1756790765551,0.18117583,110390.0,110380.0,0.18655224]
[1756790766444,0.18117583,110390.0,110380.0,0.18755224]
[1756790767288,0.48966326,110400.0,110380.0,0.18955224]
[1756790767713,0.82966326,110400.0,110390.0,0.18437583]
[1756790767854,0.82966326,110400.0,110390.0,0.18648583]
[1756790768053,0.63944587,110400.0,110390.0,0.18648583]
[1756790768267,0.82060529,110400.0,110390.0,0.18648583]
[1756790768692,0.54752988,110400.0,110390.0,0.18648583]
[1756790768886,0.39564988,110400.0,110390.0,0.33836583]
[1756790769092,0.36841588,110400.0,110390.0,0.33836583]
[1756790770103,0.5495753,110400.0,110390.0,0.33936583]
[1756790770305,0.5495753,110400.0,110390.0,0.00631]
[1756790770514,0.5495753,110400.0,110390.0,0.33936583]
[1756790770720,0.5495753,110400.0,110390.0,0.34036583]
[1756790770935,0.36841588,110400.0,110390.0,0.34036583]
[1756790771146,0.5495753,110400.0,110390.0,0.34036583]
[1756790771677,0.36841588,110400.0,110390.0,0.34036583]
[1756790771847,0.5495753,110400.0,110390.0,0.34036583]
[1756790772244,0.5495753,110400.0,110390.0,0.34236583]
[1756790772458,0.36841588,110400.0,110390.0,0.34036583]
[1756790772779,0.36841588,110400.0,110390.0,0.33836583]
[1756790772982,0.5495753,110400.0,110390.0,0.33936583]
[1756790773199,0.5495753,110400.0,110390.0,0.34136583]
[1756790774211,0.36841588,110400.0,110390.0,0.34136583]
[1756790775503,0.36841588,110400.0,110390.0,0.33936583]
[1756790775724,0.36841588,110400.0,110390.0,0.34136583]
[1756790775932,0.36841588,110400.0,110390.0,0.34036583]
[1756790776276,0.36841588,110400.0,110390.0,0.34236583]
[1756790777004,0.02841588,110400.0,110390.0,0.34236583]
[1756790777434,0.7887,110410.0,110400.0,0.18115942]
[1756790777648,0.4487,110410.0,110400.0,0.18873391]
[1756790777860,0.4763845,110410.0,110400.0,0.18646942]
[1756790778735,0.0276845,110410.0,110400.0,0.18646942]
[1756790778950,0.0276845,110410.0,110400.0,0.18746942]
[1756790779150,0.00047215,110420.0,110410.0,0.18114301]
[1756790779358,0.00047215,110420.0,110410.0,0.33848729]
[1756790779557,0.00047215,110420.0,110410.0,0.33622301]
[1756790779774,0.00047215,110420.0,110410.0,0.33833301]
[1756790781364,0.00047215,110420.0,110410.0,0.33933301]
[1756790781540,0.18159875,110420.0,110410.0,0.18745301]
[1756790781737,0.18159875,110420.0,110410.0,0.33929301]
[1756790782002,0.00047215,110420.0,110410.0,0.33929301]
[1756790782227,0.02791178,110420.0,110410.0,0.33929301]
[1756790782745,0.20903838,110420.0,110410.0,0.33718301]
[1756790782943,0.20903838,110420.0,110410.0,0.33398301]
[1756790783151,0.20903838,110420.0,110410.0,0.33718301]
[1756790783361,0.20903838,110420.0,110410.0,0.15284]
[1756790784349,0.20903838,110420.0,110410.0,0.001]
[1756790784770,0.20903838,110420.0,110410.0,0.18214301]
[1756790784972,0.20903838,110420.0,110410.0,0.18534301]
[1756790785216,0.20903838,110420.0,110410.0,0.0042]
[1756790785851,0.36907836,110430.0,110410.0,0.18534301]
[1756790786062,0.1811266,110420.0,110410.0,0.18534301]
[1756790786916,0.1811266,110420.0,110410.0,0.18434301]
[1756790788479,0.20931992,110420.0,110410.0,0.18434301]
[1756790789138,0.20931992,110420.0,110410.0,0.18534301]
[1756790789350,0.20931992,110420.0,110410.0,0.0042]
[1756790789573,0.20931992,110420.0,110410.0,0.18534301]
[1756790789844,0.20931992,110420.0,110410.0,0.18745301]
[1756790790054,0.20931992,110420.0,110410.0,0.00631]
[1756790790293,0.20931992,110420.0,110410.0,0.18745301]
[1756790792815,5.68735971,110420.0,110410.0,0.001]
[1756790793039,5.71277377,110420.0,110410.0,0.001]
[1756790793751,5.74000477,110420.0,110410.0,0.001]
[1756790794811,0.18115942,110400.0,110390.0,0.0032]
[1756790795173,0.18115942,110400.0,110390.0,0.18648583]
[1756790795788,0.18115942,110400.0,110390.0,0.00531]
[1756790795990,0.18115942,110400.0,110390.0,0.18648583]
[1756790796207,0.18115942,110400.0,110390.0,0.00631]
[1756790798043,0.18115942,110400.0,110390.0,0.00831]
[1756790802298,0.18115942,110400.0,110390.0,0.18948583]
[1756790805550,0.18115942,110400.0,110390.0,0.00831]
[1756790821318,0.20071343,110400.0,110390.0,0.00831]
[1756790824459,0.20071343,110400.0,110390.0,0.0062]
[1756790824666,0.20071343,110400.0,110390.0,0.00822]
[1756790825894,0.20071343,110400.0,110390.0,0.0062]
[1756790826230,0.20071343,110400.0,110390.0,0.00837]
[1756790830097,0.56731799,110400.0,110390.0,0.003]
[1756790830331,0.65923398,110400.0,110390.0,0.003]
[1756790830542,5.7154955,110400.0,110390.0,0.003]
[1756790830979,5.7427305,110400.0,110390.0,0.003]
[1756790831618,5.7427305,110400.0,110390.0,0.002]
[1756790831846,5.78309161,110400.0,110390.0,0.002]
[1756790832282,0.52117583,110390.0,110380.0,0.00317]
[1756790832493,5.69252984,110390.0,110380.0,0.00317]
[1756790832705,0.69252984,110390.0,110380.0,0.00317]
[1756790833559,0.69252984,110390.0,110380.0,0.00364215]
[1756790834071,0.69252984,110390.0,110380.0,0.00564215]
[1756790834489,0.69252984,110390.0,110380.0,0.00664215]
[1756790835033,0.78444583,110390.0,110380.0,0.00347215]
[1756790835256,0.81105039,110390.0,110380.0,0.00347215]
[1756790835492,0.83828939,110390.0,110380.0,0.00347215]
[1756790836144,0.8552565,110390.0,110380.0,0.00347215]
[1756790836355,0.83828939,110390.0,110380.0,0.00347215]
[1756790837801,0.83828939,110390.0,110380.0,0.00664215]
[1756790838037,0.81168483,110390.0,110380.0,0.00664215]
[1756790839492,0.65988483,110390.0,110380.0,0.00664215]
[1756790839636,0.81168483,110390.0,110380.0,0.00881215]
[1756790840409,0.56796884,110390.0,110380.0,0.00881215]
[1756790840631,0.01955401,110390.0,110380.0,0.19000439]
[1756790840844,0.33295942,110400.0,110390.0,0.18117583]
[1756790841056,0.17133395,110400.0,110390.0,0.18651583]
[1756790841270,0.67295942,110400.0,110390.0,0.18651583]
[1756790841409,0.34201499,110410.0,110400.0,0.18115942]
[1756790841623,0.54975119,110410.0,110400.0,0.18649942]
[1756790841850,0.70155119,110410.0,110400.0,0.18649942]
[1756790842054,0.36155119,110410.0,110400.0,0.18649942]
[1756790842451,0.70155119,110410.0,110400.0,0.18649942]
[1756790843698,0.70355119,110410.0,110400.0,0.18649942]
[1756790844310,0.70155119,110410.0,110400.0,0.18649942]
[1756790845778,0.70155119,110410.0,110400.0,0.00534]
[1756790845935,0.70155119,110410.0,110400.0,0.00634]
[1756790847055,0.70155119,110410.0,110400.0,0.001]
[1756790848358,0.70155119,110410.0,110400.0,0.00417]
[1756790848768,0.70155119,110410.0,110400.0,0.00634]
[1756790849616,0.70155119,110410.0,110400.0,0.001]
[1756790849826,5.82007174,110410.0,110400.0,0.001]
[1756790850241,5.86144304,110410.0,110400.0,0.001]
[1756790851081,5.67225882,110410.0,110400.0,0.001]
[1756790851273,5.85342852,110410.0,110400.0,0.001]
[1756790851871,5.86248567,110410.0,110400.0,0.001]
[1756790856202,6.31118567,110410.0,110400.0,0.001]
[1756790859720,6.29422932,110410.0,110400.0,0.001]
[1756790859952,6.31118948,110410.0,110400.0,0.001]
[1756790860706,6.31119005,110410.0,110400.0,0.001]
[1756790860998,6.335605,110410.0,110400.0,0.001]
[1756790864446,6.183805,110410.0,110400.0,0.001]
[1756790864676,6.336005,110410.0,110400.0,0.001]
[1756790864891,6.336005,110410.0,110400.0,0.00607]
[1756790866829,6.33600124,110410.0,110400.0,0.00607]
[1756790867584,6.18380124,110410.0,110400.0,0.00607]
[1756790867793,6.30935668,110410.0,110400.0,0.00607]
[1756790868643,6.33596124,110410.0,110400.0,0.00402]
[1756790868861,6.35080409,110410.0,110400.0,0.001]
[1756790869949,6.3834094,110410.0,110400.0,0.001]
[1756790870386,6.38542979,110410.0,110400.0,0.001]
[1756790870571,0.52115942,110400.0,110390.0,0.00302]
[1756790870822,5.78298333,110400.0,110390.0,0.00302]
[1756790871042,0.78298333,110400.0,110390.0,0.00507]
[1756790871236,0.82718952,110400.0,110390.0,0.00507]
[1756790872323,0.82718952,110400.0,110390.0,0.00607]
[1756790872987,0.85160447,110400.0,110390.0,0.001]
[1756790873203,0.85160447,110400.0,110390.0,0.00402]
[1756790873508,0.85160447,110400.0,110390.0,0.00607]
[1756790873956,0.85160428,110400.0,110390.0,0.00607]
[1756790876398,0.85152428,110400.0,110390.0,0.00607]
[1756790877259,0.69944428,110400.0,110390.0,0.00607]
[1756790877482,0.67503575,110400.0,110390.0,0.00607]
[1756790877706,0.81013933,110400.0,110390.0,0.00607]
[1756790877921,0.82711568,110400.0,110390.0,0.00607]
[1756790878134,0.67503568,110400.0,110390.0,0.00607]
[1756790878327,0.82715568,110400.0,110390.0,0.00607]
[1756790878674,0.85157367,110400.0,110390.0,0.00607]
[1756790881015,0.85157791,110400.0,110390.0,0.00607]
[1756790881514,5.87818252,110400.0,110390.0,0.00402]
[1756790884150,5.88455114,110400.0,110390.0,0.00402]
[1756790884358,5.88455114,110400.0,110390.0,0.001]
[1756790885208,5.88455114,110400.0,110390.0,0.00402]
[1756790885962,5.88455093,110400.0,110390.0,0.00402]
[1756790886549,5.88455093,110400.0,110390.0,0.001]
[1756790886755,5.88640563,110400.0,110390.0,0.001]
[1756790887170,5.89489661,110400.0,110390.0,0.001]
[1756790887406,5.92750192,110400.0,110390.0,0.001]
[1756790887850,5.90304771,110400.0,110390.0,0.001]
[1756790888862,0.18117583,110390.0,110380.0,0.00047215]
[1756790889066,5.51941429,110390.0,110380.0,0.00047215]
[1756790889275,0.36705429,110390.0,110380.0,0.00552215]
[1756790889477,0.48644132,110390.0,110380.0,0.00552215]
[1756790889677,0.51368032,110390.0,110380.0,0.00552215]
[1756790890111,0.49669664,110390.0,110380.0,0.00552215]
[1756790890313,0.51366588,110390.0,110380.0,0.00552215]
[1756790890510,0.51566588,110390.0,110380.0,0.00552215]
[1756790890709,0.51366588,110390.0,110380.0,0.00552215]
[1756790892416,0.51366588,110390.0,110380.0,0.00652215]
[1756790893117,0.5544916,110390.0,110380.0,0.00652215]
[1756790897299,0.5544815,110390.0,110380.0,0.00652215]
[1756790899620,5.58108606,110390.0,110380.0,0.00448215]
[1756790899856,5.58108606,110390.0,110380.0,0.00147215]
[1756790900663,5.56412692,110390.0,110380.0,0.00147215]
[1756790900928,5.5810861,110390.0,110380.0,0.00147215]
[1756790901187,5.5810861,110390.0,110380.0,0.00047215]
[1756790902068,5.5810861,110390.0,110380.0,0.00348215]
[1756790902274,5.5830861,110390.0,110380.0,0.00348215]
[1756790903121,5.54226038,110390.0,110380.0,0.00348215]
[1756790907080,5.54226038,110390.0,110380.0,0.00552215]
[1756790908246,5.58215194,110390.0,110380.0,0.00552215]
[1756790911633,5.58215878,110390.0,110380.0,0.00552215]
[1756790912089,5.58215878,110390.0,110380.0,0.00348215]
[1756790912306,5.58852344,110390.0,110380.0,0.00348215]
[1756790912825,5.56191888,110390.0,110380.0,0.00348215]
[1756790913426,5.55555597,110390.0,110380.0,0.00348215]
[1756790913613,5.56191975,110390.0,110380.0,0.00348215]
[1756790913944,5.56191975,110390.0,110380.0,0.00552215]
[1756790915384,5.57040563,110390.0,110380.0,0.00552215]
[1756790916199,5.57040563,110390.0,110380.0,0.00348215]
[1756790916406,5.60301094,110390.0,110380.0,0.00348215]
[1756790916625,5.60301094,110390.0,110380.0,0.00564215]
[1756790916828,5.60301,110390.0,110380.0,0.00564215]
[1756790921980,5.59664622,110390.0,110380.0,0.00564215]
[1756790922218,5.60303327,110390.0,110380.0,0.00564215]
[1756790922627,5.60303334,110390.0,110380.0,0.00564215]
[1756790924931,5.60303334,110390.0,110380.0,0.00047215]
[1756790925152,5.6296379,110390.0,110380.0,0.00047215]
[1756790925680,5.62964079,110390.0,110380.0,0.00047215]
[1756790926385,5.62964079,110390.0,110380.0,0.00569215]
[1756790929141,5.62964812,110390.0,110380.0,0.00569215]
[1756790930613,5.47728812,110390.0,110380.0,0.00569215]
[1756790930798,5.62916812,110390.0,110380.0,0.00569215]
[1756790932466,5.59656281,110390.0,110380.0,0.00569215]
[1756790932666,5.59656373,110390.0,110380.0,0.00569215]
[1756790933174,5.62916904,110390.0,110380.0,0.00569215]
[1756790933499,5.62916898,110390.0,110380.0,0.00569215]